fUSD/lending_fUSD_20250523
["ID","MTS","AMOUNT","RATE_DAILY","PERIOD"]
[362134353,1748019054516,-420.0,0.00027671,4]
[362134354,1748019054526,-420.0,0.00027671,4]
[362134355,1748019054539,-194.13,0.00027671,4]
[362134356,1748019054548,-420.0,0.00027671,4]
[362134357,1748019054557,-420.0,0.00027671,4]
[362134358,1748019054567,-420.0,0.00027671,4]
[362134359,1748019054576,-420.0,0.00027671,4]
[362134360,1748019054586,-420.0,0.00027671,4]
[362134361,1748019054595,-420.0,0.00027671,4]
[362134362,1748019054604,-420.0,0.00027671,4]
[362134363,1748019054613,-420.0,0.00027671,4]
[362134364,1748019054624,-502.14,0.00027671,4]
[362134365,1748019054633,-420.0,0.00027671,4]
[362134366,1748019054643,-557.27,0.00027671,4]
[362134367,1748019054653,-420.0,0.00027671,4]
[362134368,1748019054664,-343.44825336,0.00027671,4]
[362134369,1748019054673,-420.0,0.00027671,4]
[362134370,1748019054683,-523.52,0.00027671,4]
[362134371,1748019054693,-250.0,0.00027671,4]
[362134372,1748019054702,-562.48,0.00027671,4]
[362134373,1748019055106,-261.75622714,0.00027671,4]
[362134374,1748019055125,-420.0,0.00027671,4]
[362134375,1748019055139,-420.0,0.00027671,4]
[362134376,1748019055149,-1006.23,0.00027671,4]
[362134377,1748019055160,-519.14,0.00027671,4]
[362134378,1748019055170,-313.7,0.00027671,4]
[362134379,1748019055180,-420.0,0.00027671,4]
[362134380,1748019055190,-25994.11,0.00027671,4]
[362134381,1748019055199,-420.0,0.00027671,4]
[362134382,1748019055208,-1844.83,0.00027671,4]
[362134383,1748019055217,-420.0,0.00027671,4]
[362134384,1748019055227,-420.0,0.00027671,4]
[362134385,1748019055236,-420.0,0.00027671,4]
[362134386,1748019055245,-420.0,0.00027671,4]
[362134387,1748019055255,-420.0,0.00027671,4]
[362134388,1748019055264,-420.0,0.00027671,4]
[362134389,1748019055274,-420.0,0.00027671,4]
[362134390,1748019055283,-420.0,0.00027671,4]
[362134391,1748019055292,-420.0,0.00027671,4]
[362134392,1748019055301,-420.0,0.00027671,4]
[362134393,1748019055311,-311.66,0.00027671,4]
[362134394,1748019055320,-420.0,0.00027671,4]
[362134395,1748019055329,-420.0,0.00027671,4]
[362134396,1748019055338,-420.0,0.00027671,4]
[362134397,1748019055348,-420.0,0.00027671,4]
[362134398,1748019055357,-420.0,0.00027671,4]
[362134399,1748019055366,-420.0,0.00027671,4]
[362134400,1748019055375,-1299.52,0.00027671,4]
[362134401,1748019055385,-420.0,0.00027671,4]
[362134402,1748019055394,-420.0,0.00027671,4]
[362134403,1748019055403,-155.7,0.00027671,4]
[362134404,1748019055413,-420.0,0.00027671,4]
[362134405,1748019055422,-421.35,0.00027671,4]
[362134406,1748019055431,-420.0,0.00027671,4]
[362134407,1748019055440,-420.0,0.00027671,4]
[362134408,1748019055450,-290.85792525,0.00027671,4]
[362134409,1748019055459,-420.0,0.00027671,4]
[362134410,1748019055468,-303.52,0.00027671,4]
[362134411,1748019055477,-420.0,0.00027671,4]
[362134412,1748019055486,-540.16,0.00027671,4]
[362134413,1748019055495,-420.0,0.00027671,4]
[362134414,1748019055505,-420.0,0.00027671,4]
[362134415,1748019055514,-420.0,0.00027671,4]
[362134416,1748019055523,-420.0,0.00027671,4]
[362134417,1748019055533,-420.0,0.00027671,4]
[362134418,1748019055547,-420.0,0.00027671,4]
[362134419,1748019055557,-420.0,0.00027671,4]
[362134420,1748019055566,-420.0,0.00027671,4]
[362134421,1748019055575,-516.92,0.00027671,4]
[362134422,1748019055586,-420.0,0.00027671,4]
[362134423,1748019055596,-420.0,0.00027671,4]
[362134424,1748019055605,-444.55,0.00027671,4]
[362134425,1748019055615,-420.0,0.00027671,4]
[362134426,1748019055624,-420.0,0.00027671,4]
[362134427,1748019055634,-506.04,0.00027671,4]
[362134428,1748019055643,-207.67884937,0.00027671,4]
[362134429,1748019055652,-420.0,0.00027671,4]
[362134430,1748019055662,-506.08696782,0.00027671,4]
[362134431,1748019055671,-154.7623384,0.00027671,4]
[362134432,1748019055680,-387.15,0.00027671,4]
[362134433,1748019055690,-420.0,0.00027671,4]
[362134434,1748019055699,-5988.5,0.00027671,4]
[362134435,1748019055708,-420.0,0.00027671,4]
[362134436,1748019055718,-420.0,0.00027671,4]
[362134437,1748019055727,-420.0,0.00027671,4]
[362134438,1748019055738,-420.0,0.00027671,4]
[362134439,1748019055747,-420.0,0.00027671,4]
[362134440,1748019055757,-420.0,0.00027671,4]
[362134441,1748019055766,-420.0,0.00027671,4]
[362134442,1748019055776,-533.7,0.00027671,4]
[362134443,1748019055785,-420.0,0.00027671,4]
[362134444,1748019055794,-420.0,0.00027671,4]
[362134445,1748019055804,-420.0,0.00027671,4]
[362134446,1748019055813,-420.0,0.00027671,4]
[362134447,1748019055823,-420.0,0.00027671,4]
[362134448,1748019055833,-420.0,0.00027671,4]
[362134449,1748019055842,-420.0,0.00027671,4]
[362134450,1748019055852,-420.0,0.00027671,4]
[362134451,1748019055861,-3105.51,0.00027671,2]
[362134452,1748019055871,-420.0,0.00027671,4]
[362134453,1748019055881,-420.0,0.00027671,4]
[362134454,1748019055891,-420.0,0.00027671,4]
[362134455,1748019055902,-420.0,0.00027671,4]
[362134456,1748019055912,-420.0,0.00027671,4]
[362134457,1748019055921,-420.0,0.00027671,4]
[362134458,1748019055931,-420.0,0.00027671,4]
[362134459,1748019055941,-420.0,0.00027671,4]
[362134460,1748019055951,-420.0,0.00027671,4]
[362134461,1748019055962,-420.0,0.00027671,4]
[362134462,1748019055972,-420.0,0.00027671,4]
[362134463,1748019055983,-420.0,0.00027671,4]
[362134464,1748019055994,-420.0,0.00027671,4]
[362134465,1748019056003,-7638.69,0.00027671,4]
[362134466,1748019056013,-420.0,0.00027671,4]
[362134467,1748019056022,-420.0,0.00027671,4]
[362134468,1748019056032,-514.34,0.00027671,4]
[362134469,1748019056042,-420.0,0.00027671,4]
[362134470,1748019056051,-420.0,0.00027671,4]
[362134471,1748019056061,-420.0,0.00027671,4]
[362134472,1748019056070,-420.0,0.00027671,4]
[362134473,1748019056080,-420.0,0.00027671,4]
[362134474,1748019056089,-420.0,0.00027671,4]
[362134475,1748019056099,-420.0,0.00027671,4]
[362134476,1748019056109,-420.0,0.00027671,4]
[362134477,1748019056119,-4274.15,0.00027671,4]
[362134478,1748019056130,-491.78,0.00027671,4]
[362134479,1748019056139,-420.0,0.00027671,4]
[362134480,1748019056149,-420.0,0.00027671,4]
[362134481,1748019056158,-2080.09,0.00027671,4]
[362134482,1748019056168,-420.0,0.00027671,4]
[362134483,1748019056179,-420.0,0.00027671,4]
[362134484,1748019056190,-420.0,0.00027671,4]
[362134485,1748019056201,-420.0,0.00027671,4]
[362134486,1748019056210,-738.08,0.00027671,4]
[362134487,1748019056220,-420.0,0.00027671,4]
[362134488,1748019056229,-420.0,0.00027671,4]
[362134489,1748019056239,-420.0,0.00027671,2]
[362134490,1748019056249,-420.0,0.00027671,4]
[362134491,1748019056258,-204.55254421,0.00027671,4]
[362134492,1748019056267,-479.370964,0.00027671,4]
[362134493,1748019056276,-455.75,0.00027671,4]
[362134494,1748019056285,-420.0,0.00027671,4]
[362134495,1748019056294,-516.01,0.00027671,4]
[362134496,1748019056303,-420.0,0.00027671,4]
[362134497,1748019056312,-172.81,0.00027671,4]
[362134498,1748019056322,-420.0,0.00027671,4]
[362134499,1748019056331,-420.0,0.00027671,4]
[362134500,1748019056341,-420.0,0.00027671,4]
[362134501,1748019056351,-276.15038251,0.00027671,30]
[362134502,1748019056360,-600.0,0.000277,10]
[362134503,1748019056370,-782.56691502,0.000277,2]
[362134504,1748019056380,-594.5290302,0.00027728,17]
[362134505,1748019056389,-207.0,0.0002777,2]
[362134506,1748019056399,-276.15038251,0.00027781,30]
[362134507,1748019056410,-5372.59614698,0.00027788,2]
[362134508,1748019056419,-3300.0,0.000278,10]
[362134509,1748019056428,-150.0,0.00027807,2]
[362134510,1748019056438,-420.0,0.00027808,2]
[362134511,1748019056447,-368.278338,0.00027808,4]
[362134512,1748019056456,-429.3,0.00027808,4]
[362134513,1748019056466,-310.88,0.00027808,4]
[362134514,1748019056475,-550.47,0.00027808,4]
[362134515,1748019056484,-420.0,0.00027808,4]
[362134516,1748019056493,-420.0,0.00027808,4]
[362134517,1748019056502,-188.96605588,0.00027808,4]
[362134518,1748019056511,-544.35736237,0.00027808,4]
[362134519,1748019056520,-420.0,0.00027808,4]
[362134520,1748019056530,-420.0,0.00027808,4]
[362134521,1748019056543,-420.0,0.00027808,4]
[362134522,1748019056552,-420.0,0.00027808,4]
[362134523,1748019056562,-420.0,0.00027808,4]
[362134524,1748019056571,-420.0,0.00027808,4]
[362134525,1748019056581,-420.0,0.00027808,4]
[362134526,1748019056590,-420.0,0.00027808,4]
[362134527,1748019056600,-420.0,0.00027808,4]
[362134528,1748019056610,-420.0,0.00027808,4]
[362134529,1748019056620,-420.0,0.00027808,4]
[362134530,1748019056629,-253.89,0.00027808,4]
[362134531,1748019056638,-420.0,0.00027808,4]
[362134532,1748019056648,-163.942934,0.00027808,4]
[362134533,1748019056658,-253.351172,0.00027808,7]
[362134534,1748019056667,-420.0,0.00027808,4]
[362134535,1748019056677,-173.578116,0.00027808,4]
[362134536,1748019056686,-168.25,0.00027808,4]
[362134537,1748019056695,-420.0,0.00027808,4]
[362134538,1748019056704,-420.0,0.00027808,4]
[362134539,1748019056714,-493.21,0.00027808,4]
[362134540,1748019056723,-420.0,0.00027808,4]
[362134541,1748019056733,-335.84045801,0.00027808,4]
[362134542,1748019056742,-420.0,0.00027808,4]
[362134543,1748019056751,-462.9,0.00027808,4]
[362134544,1748019056761,-420.0,0.00027808,4]
[362134545,1748019056770,-420.0,0.00027808,4]
[362134546,1748019056779,-420.0,0.00027808,4]
[362134547,1748019056789,-457.22,0.00027808,4]
[362134548,1748019056798,-420.0,0.00027808,4]
[362134549,1748019056808,-420.0,0.00027808,4]
[362134550,1748019056819,-151.0,0.00027808,7]
[362134551,1748019056828,-523.52,0.00027808,4]
[362134552,1748019056838,-151.0,0.00027808,7]
[362134553,1748019056848,-562.48,0.00027808,4]
[362134554,1748019056858,-1006.23,0.00027808,4]
[362134555,1748019056867,-371.68,0.00027808,4]
[362134556,1748019056877,-25994.11,0.00027808,4]
[362134557,1748019056887,-513.1,0.00027808,4]
[362134558,1748019056897,-1844.83,0.00027808,4]
[362134559,1748019056907,-420.0,0.00027808,4]
[362134560,1748019056917,-556.99,0.00027808,4]
[362134561,1748019056927,-420.0,0.00027808,4]
[362134562,1748019056936,-420.0,0.00027808,4]
[362134563,1748019056946,-420.0,0.00027808,4]
[362134564,1748019056955,-420.0,0.00027808,4]
[362134565,1748019056965,-304.35,0.00027808,4]
[362134566,1748019056975,-420.0,0.00027808,4]
[362134567,1748019056985,-420.0,0.00027808,4]
[362134568,1748019056995,-420.0,0.00027808,4]
[362134569,1748019057004,-420.0,0.00027808,4]
[362134570,1748019057014,-151.0,0.00027808,7]
[362134571,1748019057024,-420.0,0.00027808,4]
[362134572,1748019057033,-420.0,0.00027808,4]
[362134573,1748019057043,-528.37,0.00027808,4]
[362134574,1748019057053,-176.21,0.00027808,4]
[362134575,1748019057063,-420.0,0.00027808,4]
[362134576,1748019057072,-1299.52,0.00027808,4]
[362134577,1748019057082,-420.0,0.00027808,4]
[362134578,1748019057091,-420.0,0.00027808,4]
[362134579,1748019057100,-421.35,0.00027808,4]
[362134580,1748019057110,-155.02,0.00027808,4]
[362134581,1748019057120,-151.0,0.00027808,7]
[362134582,1748019057130,-151.0,0.00027808,7]
[362134583,1748019057139,-256.22799046,0.00027808,4]
[362134584,1748019057149,-217.2,0.00027808,4]
[362134585,1748019057159,-420.0,0.00027808,4]
[362134586,1748019057172,-420.0,0.00027808,4]
[362134587,1748019057182,-420.0,0.00027808,4]
[362134588,1748019057191,-1834.366864,0.00027808,7]
[362134589,1748019057200,-420.0,0.00027808,4]
[362134590,1748019057210,-420.0,0.00027808,4]
[362134591,1748019057220,-516.92,0.00027808,4]
[362134592,1748019057230,-420.0,0.00027808,4]
[362134593,1748019057239,-420.0,0.00027808,4]
[362134594,1748019057249,-268.68,0.00027808,4]
[362134595,1748019057259,-506.04,0.00027808,4]
[362134596,1748019057269,-420.0,0.00027808,4]
[362134597,1748019057278,-5988.5,0.00027808,4]
[362134598,1748019057288,-420.0,0.00027808,4]
[362134599,1748019057297,-420.0,0.00027808,4]
[362134600,1748019057307,-420.0,0.00027808,4]
[362134601,1748019057317,-322.35491548,0.00027808,4]
[362134602,1748019057326,-544.7,0.00027808,4]
[362134603,1748019057336,-420.0,0.00027808,4]
[362134604,1748019057345,-420.0,0.00027808,4]
[362134605,1748019057355,-155.06708136,0.00027808,4]
[362134606,1748019057365,-533.7,0.00027808,4]
[362134607,1748019057374,-420.0,0.00027808,4]
[362134608,1748019057384,-420.0,0.00027808,4]
[362134609,1748019057394,-420.0,0.00027808,4]
[362134610,1748019057404,-420.0,0.00027808,4]
[362134611,1748019057414,-420.0,0.00027808,4]
[362134612,1748019057423,-420.0,0.00027808,4]
[362134613,1748019057434,-420.0,0.00027808,4]
[362134614,1748019057443,-3105.51,0.00027808,2]
[362134615,1748019057454,-234.23,0.00027808,4]
[362134616,1748019057464,-420.0,0.00027808,4]
[362134617,1748019057474,-420.0,0.00027808,4]
[362134618,1748019057483,-420.0,0.00027808,4]
[362134619,1748019057493,-420.0,0.00027808,4]
[362134620,1748019057503,-420.0,0.00027808,4]
[362134621,1748019057513,-420.0,0.00027808,4]
[362134622,1748019057523,-420.0,0.00027808,4]
[362134623,1748019057532,-420.0,0.00027808,4]
[362134624,1748019057546,-151.0,0.00027808,7]
[362134625,1748019057556,-151.0,0.00027808,7]
[362134626,1748019057566,-420.0,0.00027808,4]
[362134627,1748019057576,-420.0,0.00027808,4]
[362134628,1748019057587,-151.0,0.00027808,7]
[362134629,1748019057597,-2807.50679353,0.00027808,4]
[362134630,1748019057614,-2893.26,0.00027808,4]
[362134631,1748019057627,-1937.92320647,0.00027808,4]
[362134632,1748019057637,-420.0,0.00027808,4]
[362134633,1748019057647,-420.0,0.00027808,4]
[362134634,1748019057657,-514.34,0.00027808,4]
[362134635,1748019057667,-420.0,0.00027808,4]
[362134636,1748019057676,-420.0,0.00027808,4]
[362134637,1748019057686,-420.0,0.00027808,4]
[362134638,1748019057697,-420.0,0.00027808,4]
[362134639,1748019057707,-420.0,0.00027808,4]
[362134640,1748019057717,-420.0,0.00027808,4]
[362134641,1748019057727,-420.0,0.00027808,4]
[362134642,1748019057737,-420.0,0.00027808,4]
[362134643,1748019057747,-4274.15,0.00027808,4]
[362134644,1748019057758,-151.0,0.00027808,7]
[362134645,1748019057768,-491.78,0.00027808,4]
[362134646,1748019057778,-420.0,0.00027808,4]
[362134647,1748019057788,-420.0,0.00027808,4]
[362134648,1748019057798,-2080.09,0.00027808,4]
[362134649,1748019057807,-420.0,0.00027808,4]
[362134650,1748019057817,-420.0,0.00027808,4]
[362134651,1748019057827,-420.0,0.00027808,4]
[362134652,1748019057837,-420.0,0.00027808,4]
[362134653,1748019057847,-738.08,0.00027808,4]
[362134654,1748019057856,-420.0,0.00027808,4]
[362134655,1748019057866,-420.0,0.00027808,4]
[362134656,1748019057876,-420.0,0.00027808,4]
[362134657,1748019057886,-420.0,0.00027808,2]
[362134658,1748019057895,-479.370964,0.00027808,4]
[362134659,1748019057905,-455.75,0.00027808,4]
[362134660,1748019057916,-420.0,0.00027808,4]
[362134661,1748019057925,-516.01,0.00027808,4]
[362134662,1748019057935,-420.0,0.00027808,4]
[362134663,1748019057946,-151.0,0.00027808,7]
[362134664,1748019057955,-227.66,0.00027808,4]
[362134665,1748019057964,-420.0,0.00027808,4]
[362134666,1748019057975,-420.0,0.00027808,4]
[362134667,1748019057985,-478.37,0.0002787,120]
[362134668,1748019057996,-276.15038251,0.0002789,30]
[362134669,1748019058006,-1119.42,0.000279,7]
[362134670,1748019058016,-4500.0,0.000279,10]
[362134671,1748019058025,-150.0,0.00027944,2]
[362134672,1748019058035,-537.31160976,0.00027945,2]
[362134673,1748019058044,-368.278338,0.00027945,4]
[362134674,1748019058054,-550.47,0.00027945,4]
[362134675,1748019058064,-420.0,0.00027945,4]
[362134676,1748019058073,-420.0,0.00027945,4]
[362134677,1748019058082,-151.0,0.00027945,7]
[362134678,1748019058092,-151.0,0.00027945,7]
[362134679,1748019058101,-420.0,0.00027945,4]
[362134680,1748019058111,-420.0,0.00027945,4]
[362134681,1748019058120,-420.0,0.00027945,4]
[362134682,1748019058130,-420.0,0.00027945,4]
[362134683,1748019058139,-420.0,0.00027945,4]
[362134684,1748019058148,-313.94,0.00027945,4]
[362134685,1748019058157,-420.0,0.00027945,4]
[362134686,1748019058167,-420.0,0.00027945,4]
[362134687,1748019058177,-151.0,0.00027945,7]
[362134688,1748019058186,-151.0,0.00027945,7]
[362134689,1748019058195,-151.0,0.00027945,7]
[362134690,1748019058204,-151.0,0.00027945,7]
[362134691,1748019058213,-212.722299,0.00027945,7]
[362134692,1748019058222,-420.0,0.00027945,4]
[362134693,1748019058231,-298.608094,0.00027945,7]
[362134694,1748019058240,-420.0,0.00027945,4]
[362134695,1748019058249,-420.0,0.00027945,4]
[362134696,1748019058258,-420.0,0.00027945,4]
[362134697,1748019058268,-380.1,0.00027945,4]
[362134698,1748019058277,-173.578116,0.00027945,4]
[362134699,1748019058286,-420.0,0.00027945,4]
[362134700,1748019058295,-151.0,0.00027945,7]
[362134701,1748019058305,-420.0,0.00027945,4]
[362134702,1748019058315,-420.0,0.00027945,4]
[362134703,1748019058324,-420.0,0.00027945,4]
[362134704,1748019058333,-437.86,0.00027945,4]
[362134705,1748019058343,-151.0,0.00027945,7]
[362134706,1748019058353,-405.25357019,0.00027945,4]
[362134707,1748019058364,-420.0,0.00027945,4]
[362134708,1748019058373,-420.0,0.00027945,4]
[362134709,1748019058384,-420.0,0.00027945,4]
[362134710,1748019058393,-523.52,0.00027945,4]
[362134711,1748019058404,-562.48,0.00027945,4]
[362134712,1748019058567,-1006.23,0.00027945,4]
[362134713,1748019058583,-25994.11,0.00027945,4]
[362134714,1748019058592,-1844.83,0.00027945,4]
[362134715,1748019058603,-420.0,0.00027945,4]
[362134716,1748019058612,-236.71,0.00027945,4]
[362134717,1748019058622,-420.0,0.00027945,4]
[362134718,1748019058632,-161.1,0.00027945,4]
[362134719,1748019058641,-420.0,0.00027945,4]
[362134720,1748019058651,-162.57,0.00027945,4]
[362134721,1748019058661,-420.0,0.00027945,4]
[362134722,1748019058671,-420.0,0.00027945,4]
[362134723,1748019058680,-420.0,0.00027945,4]
[362134724,1748019058690,-156.5,0.00027945,4]
[362134725,1748019058700,-409.21,0.00027945,4]
[362134726,1748019058710,-420.0,0.00027945,4]
[362134727,1748019058719,-1299.52,0.00027945,4]
[362134728,1748019058729,-420.0,0.00027945,4]
[362134729,1748019058739,-420.0,0.00027945,4]
[362134730,1748019058748,-421.35,0.00027945,4]
[362134731,1748019058758,-420.0,0.00027945,4]
[362134732,1748019058767,-420.0,0.00027945,4]
[362134733,1748019058776,-420.0,0.00027945,4]
[362134734,1748019058786,-420.0,0.00027945,4]
[362134735,1748019058795,-265.44285419,0.00027945,4]
[362134736,1748019058805,-516.92,0.00027945,4]
[362134737,1748019058815,-420.0,0.00027945,4]
[362134738,1748019058824,-420.0,0.00027945,4]
[362134739,1748019058834,-506.04,0.00027945,4]
[362134740,1748019058844,-504.9757348,0.00027945,4]
[362134741,1748019058854,-5988.5,0.00027945,4]
[362134742,1748019058864,-420.0,0.00027945,4]
[362134743,1748019058873,-420.0,0.00027945,4]
[362134744,1748019058883,-443.09618819,0.00027945,4]
[362134745,1748019058893,-329.69483586,0.00027945,4]
[362134746,1748019058903,-420.0,0.00027945,4]
[362134747,1748019058914,-533.7,0.00027945,4]
[362134748,1748019058924,-420.0,0.00027945,4]
[362134749,1748019058934,-420.0,0.00027945,4]
[362134750,1748019058944,-170.72,0.00027945,4]
[362134751,1748019058954,-420.0,0.00027945,4]
[362134752,1748019058964,-420.0,0.00027945,4]
[362134753,1748019058974,-420.0,0.00027945,4]
[362134754,1748019058983,-420.0,0.00027945,4]
[362134755,1748019058993,-3105.51,0.00027945,2]
[362134756,1748019059003,-420.0,0.00027945,4]
[362134757,1748019059013,-420.0,0.00027945,4]
[362134758,1748019059023,-239.34261657,0.00027945,4]
[362134759,1748019059034,-429.42,0.00027945,4]
[362134760,1748019059044,-420.0,0.00027945,4]
[362134761,1748019059054,-420.0,0.00027945,4]
[362134762,1748019059063,-420.0,0.00027945,4]
[362134763,1748019059073,-420.0,0.00027945,4]
[362134764,1748019059083,-420.0,0.00027945,4]
[362134765,1748019059093,-420.0,0.00027945,4]
[362134766,1748019059103,-7638.69,0.00027945,4]
[362134767,1748019059112,-420.0,0.00027945,4]
[362134768,1748019059121,-420.0,0.00027945,4]
[362134769,1748019059131,-514.34,0.00027945,4]
[362134770,1748019059140,-420.0,0.00027945,4]
[362134771,1748019059149,-420.0,0.00027945,4]
[362134772,1748019059159,-420.0,0.00027945,4]
[362134773,1748019059171,-420.0,0.00027945,4]
[362134774,1748019059181,-420.0,0.00027945,4]
[362134775,1748019059191,-420.0,0.00027945,4]
[362134776,1748019059201,-420.0,0.00027945,4]
[362134777,1748019059210,-420.0,0.00027945,4]
[362134778,1748019059219,-4274.15,0.00027945,4]
[362134779,1748019059229,-491.78,0.00027945,4]
[362134780,1748019059238,-213.81,0.00027945,4]
[362134781,1748019059248,-420.0,0.00027945,4]
[362134782,1748019059257,-2080.09,0.00027945,4]
[362134783,1748019059268,-420.0,0.00027945,4]
[362134784,1748019059278,-420.0,0.00027945,4]
[362134785,1748019059287,-420.0,0.00027945,4]
[362134786,1748019059297,-738.08,0.00027945,4]
[362134787,1748019059306,-420.0,0.00027945,4]
[362134788,1748019059315,-420.0,0.00027945,4]
[362134789,1748019059324,-420.0,0.00027945,4]
[362134790,1748019059334,-420.0,0.00027945,2]
[362134791,1748019059343,-479.370964,0.00027945,4]
[362134792,1748019059353,-455.75,0.00027945,4]
[362134793,1748019059362,-420.0,0.00027945,4]
[362134794,1748019059371,-516.01,0.00027945,4]
[362134795,1748019059381,-420.0,0.00027945,4]
[362134796,1748019059390,-420.0,0.00027945,4]
[362134797,1748019059399,-420.0,0.00027945,4]
[362134798,1748019059409,-5855.73476441,0.00028,5]
[362134799,1748019059419,-10000.0,0.00028,4]
[362134800,1748019059429,-500.0,0.00028,30]
[362134801,1748019059438,-151.0,0.00028,7]
[362134802,1748019059447,-151.0,0.00028,7]
[362134803,1748019059456,-276.15038251,0.00028,30]
[362134804,1748019059465,-1291.212,0.00028,30]
[362134805,1748019059475,-153.35,0.00028,2]
[362134806,1748019059484,-153.35,0.00028,2]
[362134807,1748019059494,-153.35,0.00028,2]
[362134808,1748019059503,-153.35,0.00028,2]
[362134809,1748019059512,-153.35,0.00028,2]
[362134810,1748019059521,-153.35,0.00028,2]
[362134811,1748019059530,-153.35,0.00028,2]
[362134812,1748019059541,-153.35,0.00028,2]
[362134813,1748019059551,-153.35,0.00028,2]
[362134814,1748019059560,-153.35,0.00028,2]
[362134815,1748019059569,-153.35,0.00028,2]
[362134816,1748019059579,-153.35,0.00028,2]
[362134817,1748019059590,-153.35,0.00028,2]
[362134818,1748019059599,-153.35,0.00028,2]
[362134819,1748019059609,-153.35,0.00028,2]
[362134820,1748019059619,-153.35,0.00028,2]
[362134821,1748019059629,-153.35,0.00028,2]
[362134822,1748019059639,-153.35,0.00028,2]
[362134823,1748019059649,-153.35,0.00028,2]
[362134824,1748019059659,-153.42370869,0.00028,2]
[362134825,1748019059670,-1000.0,0.00028028,2]
[362134826,1748019059679,-211.0,0.0002804,2]
[362134827,1748019059690,-211.0,0.0002804,30]
[362134828,1748019059700,-152.0,0.00028056,3]
[362134829,1748019059710,-151.0,0.00028072,7]
[362134830,1748019059720,-151.0,0.00028072,7]
[362134831,1748019059729,-151.0,0.00028072,7]
[362134832,1748019059739,-151.0,0.00028072,7]
[362134833,1748019059748,-151.0,0.00028072,7]
[362134834,1748019059758,-150.0,0.00028081,2]
[362134835,1748019059768,-368.278338,0.00028082,4]
[362134836,1748019059777,-550.47,0.00028082,4]
[362134837,1748019059787,-420.0,0.00028082,4]
[362134838,1748019059798,-420.0,0.00028082,4]
[362134839,1748019059807,-420.0,0.00028082,4]
[362134840,1748019059816,-420.0,0.00028082,4]
[362134841,1748019059826,-335.63,0.00028082,4]
[362134842,1748019059835,-420.0,0.00028082,4]
[362134843,1748019059845,-420.0,0.00028082,4]
[362134844,1748019059855,-420.0,0.00028082,4]
[362134845,1748019059864,-420.0,0.00028082,4]
[362134846,1748019059874,-220.18,0.00028082,4]
[362134847,1748019059884,-420.0,0.00028082,4]
[362134848,1748019059894,-420.0,0.00028082,4]
[362134849,1748019059903,-420.0,0.00028082,4]
[362134850,1748019059913,-163.942934,0.00028082,4]
[362134851,1748019059923,-173.578116,0.00028082,4]
[362134852,1748019059933,-420.0,0.00028082,4]